bitfinex-derivatives/quotes_ETHF0:USTF0_20251223
["timestamp","ask_amount","ask_price","bid_price","bid_amount"]
[1766454616561,1.44623231,3021.6,3021.0,3.31]
[1766454616763,3.31,3021.7,3021.0,3.31]
[1766454617264,3.31,3021.7,3021.0,3.31814899]
[1766454620459,3.31,3021.7,3021.0,4.7643813]
[1766454621563,3.31,3021.7,3021.0,3.31814899]
[1766454623664,1.44623231,3022.1,3021.0,3.31814899]
[1766454623959,0.17048426,3022.5,3021.3,1.44623231]
[1766454623960,3.31,3022.3,3021.3,1.44623231]
[1766454624266,3.31,3022.3,3021.5,1.44623231]
[1766454624465,4.75623231,3022.3,3021.6,3.31]
[1766454624762,4.75623231,3022.3,3021.7,3.31]
[1766454626765,4.75623231,3022.3,3021.7,1.6896]
[1766454626962,4.75623231,3022.3,3021.7,0.0518]
[1766454627166,4.75623231,3022.3,3021.5,3.31]
[1766454627963,3.31,3022.3,3021.5,3.31]
[1766454628464,0.00496426,3022.5,3021.5,4.75623231]
[1766454628665,3.31,3022.4,3021.5,4.75623231]
[1766454629665,3.31,3022.4,3021.5,3.31]
[1766454629971,3.31,3022.4,3021.5,4.75623231]
[1766454631170,3.31,3022.4,3021.5,3.31]
[1766454634272,3.31,3022.4,3021.5,4.75623231]
[1766454635566,0.00496426,3022.5,3021.5,4.75623231]
[1766454635771,0.00496426,3022.5,3021.7,1.44623231]
[1766454635974,0.00496426,3022.5,3021.9,1.44623231]
[1766454636171,3.31,3022.8,3022.0,3.31]
[1766454636474,1.44940858,3023.2,3022.0,3.31]
[1766454636674,3.31,3023.1,3022.3,1.44623231]
[1766454636875,3.31,3023.1,3022.3,3.31]
[1766454637077,0.00496426,3023.0,3022.3,4.75623231]
[1766454640277,0.00496426,3023.0,3022.3,3.31]
[1766454640479,0.00496426,3023.0,3021.8,42.24623231]
[1766454640675,0.00496426,3023.0,3021.9,17.454]
[1766454641075,0.00496426,3023.0,3021.8,42.24623231]
[1766454641272,4.75623231,3022.9,3021.9,3.31]
[1766454641471,1.44623231,3022.7,3021.9,3.31]
[1766454641769,1.44623231,3022.5,3021.8,3.31]
[1766454642577,3.31,3022.6,3021.8,3.31]
[1766454645085,1.44623231,3022.9,3021.8,3.31]
[1766454645272,3.31,3022.8,3022.2,1.44623231]
[1766454645574,3.31496426,3023.0,3022.2,4.75623231]
[1766454648175,0.00496426,3023.0,3022.2,4.75623231]
[1766454654175,3.31217627,3023.2,3022.2,4.75623231]
[1766454656984,0.00317627,3023.2,3022.2,4.75623231]
[1766454657182,3.31217627,3023.2,3022.2,4.75623231]
[1766454657483,4.75840858,3023.2,3022.2,3.31]
[1766454661088,3.31217627,3023.2,3022.2,3.31]
[1766454661790,3.31217627,3023.2,3021.7,1.38360507]
[1766454661991,3.31217627,3023.2,3022.0,1.44623231]
[1766454662291,3.31217627,3023.2,3022.1,3.309]
[1766454669603,3.31217627,3023.2,3022.1,4.75466959]
[1766454671403,3.31217627,3023.2,3022.1,3.309]
[1766454674311,0.00317627,3023.2,3022.1,3.309]
[1766454674508,3.309,3023.1,3022.1,3.309]
[1766454675106,3.309,3023.1,3021.9,1.44566959]
[1766454675302,3.309,3023.1,3022.0,17.452]
[1766454679112,3.309,3023.1,3022.2,1.44566959]
[1766454679313,3.309,3023.1,3022.3,3.309]
[1766454679513,0.00317627,3023.2,3022.3,3.309]
[1766454681924,3.309,3023.8,3022.8,1.44566959]
[1766454682122,3.309,3023.8,3023.0,0.00496426]
[1766454682820,3.31311155,3023.8,3023.0,0.00496426]
[1766454684224,0.00411155,3023.8,3023.0,0.00496426]
[1766454684525,3.31311155,3023.8,3023.0,0.00496426]
[1766454685220,3.31311155,3023.8,3020.7,3.309]
[1766454685221,1.44566959,3023.1,3020.7,3.309]
[1766454685422,1.44566959,3022.0,3020.7,3.309]
[1766454685615,3.309,3021.9,3020.7,5.016]
[1766454686223,0.00496426,3021.8,3021.1,0.00496426]
[1766454687418,0.00496426,3021.8,3021.1,1.45063385]
[1766454687723,1.44566959,3024.0,3021.7,1.44566959]
[1766454687724,3.309,3022.5,3021.7,1.44566959]
[1766454688025,3.309,3022.6,3021.8,3.309]
[1766454689019,0.00411155,3023.8,3021.8,4.73093011]
[1766454689224,0.00411155,3023.8,3022.4,1.44566959]
[1766454689225,3.309,3023.7,3022.4,1.44566959]
[1766454689421,1.44566959,3023.6,3022.8,0.00496426]
[1766454689617,1.44566959,3023.6,3022.7,3.309]
[1766454690017,3.309,3023.7,3022.7,3.309]
[1766454690820,0.00496426,3023.5,3022.9,0.00496426]
[1766454691016,3.309,3023.4,3022.9,0.00496426]
[1766454692424,3.309,3023.4,3022.7,3.309]
[1766454693225,3.309,3023.4,3022.7,3.31396426]
[1766454697823,3.309,3023.4,3022.7,0.00496426]
[1766454698031,7.16,3023.4,3021.5,3.309]
[1766454698919,7.16,3023.4,3022.1,0.00496426]
[1766454700529,0.17043426,3023.5,3022.1,0.00496426]
[1766454700732,5.746,3023.3,3022.1,0.00496426]
[1766454701924,0.17043426,3023.5,3022.1,0.00496426]
[1766454702230,5.746,3023.2,3022.1,0.00496426]
[1766454702430,3.309,3023.1,3022.1,0.00496426]
[1766454704935,0.17043426,3023.5,3022.1,0.00496426]
[1766454705135,11.59,3023.4,3022.1,0.00496426]
[1766454707337,0.17043426,3023.5,3022.1,0.00496426]
[1766454707534,17.33,3023.4,3022.1,0.00496426]
[1766454708236,0.17043426,3023.5,3022.1,0.00496426]
[1766454708444,5.747,3023.3,3022.1,0.00496426]
[1766454709737,5.747,3023.3,3021.5,3.309]
[1766454709924,5.747,3023.3,3020.3,5.76955999]
[1766454709925,1.44674905,3022.6,3021.0,3.31218473]
[1766454710129,9.056,3022.5,3021.0,3.31218473]
[1766454710432,3.309,3022.4,3021.1,1.44674905]
[1766454710835,3.309,3022.4,3021.4,0.00496426]
[1766454711035,5.747,3022.3,3021.4,0.00496426]
[1766454711236,9.056,3022.3,3021.4,0.00496426]
[1766454712043,1.44674905,3022.1,3021.0,0.00318473]
[1766454712241,3.309,3022.0,3021.0,0.00318473]
[1766454712940,0.00496426,3021.8,3021.2,0.00496426]
[1766454713139,9.056,3021.7,3021.2,0.00496426]
[1766454713333,3.309,3021.6,3021.2,0.00496426]
[1766454713534,3.31295316,3021.6,3021.2,0.00496426]
[1766454719050,0.00395316,3021.6,3021.2,0.00496426]
[1766454719240,3.31,3021.5,3021.2,0.00496426]
[1766454722158,0.00395316,3021.6,3021.2,0.00496426]
[1766454722343,0.00496426,3021.8,3021.2,0.00496426]
[1766454722549,0.03396426,3021.8,3021.2,0.00496426]
[1766454722852,3.34396426,3021.8,3021.2,0.00496426]
[1766454723352,3.34652325,3021.8,3021.2,0.00496426]
[1766454725563,0.00752325,3021.8,3021.2,0.00496426]
[1766454726061,0.00752325,3021.8,3021.4,1.44646313]
[1766454731464,0.00752325,3021.8,3021.2,1.45142739]
[1766454731660,0.00752325,3021.8,3021.2,0.00496426]
[1766454731969,0.00752325,3021.8,3021.0,3.31318473]
[1766454732261,0.00752325,3021.8,3021.0,0.00318473]
[1766454732763,0.00752325,3021.8,3021.1,0.00330948]
[1766454732955,0.00752325,3021.8,3020.7,10.62646313]
[1766454732956,0.00752325,3021.8,3020.7,3.31]
[1766454733272,1.44646313,3021.5,3020.5,1.40818459]
[1766454733478,6.874,3021.4,3020.5,1.40818459]
[1766454734169,6.874,3021.4,3020.5,1.41108944]
[1766454734874,1.44646313,3021.3,3020.3,3.31]
[1766454735073,1.44646313,3021.3,3020.0,4.75646313]
[1766454735960,1.44646313,3021.3,3020.0,4.7603371]
[1766454736370,1.44646313,3020.9,3020.0,0.00387397]
[1766454736570,5.938,3020.8,3020.0,0.00387397]
[1766454738075,5.938,3020.8,3019.7,3.31]
[1766454738275,1.44646313,3020.7,3019.7,3.31]
[1766454739274,1.44646313,3020.7,3019.7,3.31425198]
[1766454740476,5.938,3020.8,3019.7,3.31425198]
[1766454740677,7.38446313,3020.8,3019.7,3.31425198]
[1766454742879,1.44646313,3020.6,3019.7,3.31425198]
[1766454743075,3.311,3020.5,3019.7,3.31425198]
[1766454743276,3.311,3020.5,3019.7,0.00425198]
[1766454749185,8.79,3020.4,3019.7,0.00425198]
[1766454753781,8.79,3020.4,3019.7,1.98e-06]
[1766454753986,1.44646313,3019.9,3018.7,3.312]
[1766454754191,0.00496426,3019.6,3018.7,3.312]
[1766454754385,3.312,3019.5,3018.7,3.312]
[1766454754587,3.312,3019.5,3018.7,4.75846313]
[1766454754986,3.31586288,3019.5,3018.7,3.31593379]
[1766454755586,3.31586288,3019.5,3018.7,0.00393379]
[1766454762594,4.76232601,3019.5,3018.7,0.00393379]
[1766454763898,0.00386288,3019.5,3018.8,1.44646313]
[1766454764191,0.16565,3020.2,3019.0,1.44646313]
[1766454764494,2.02646313,3020.1,3019.0,1.44646313]
[1766454764696,3.312,3020.0,3019.0,1.44646313]
[1766454764895,3.312,3020.0,3018.8,1.44646313]
[1766454765491,0.00496426,3019.7,3019.1,0.00496426]
[1766454765684,3.312,3019.6,3019.1,0.00496426]
[1766454768495,0.00496426,3019.7,3019.1,0.00496426]
[1766454768700,3.313,3019.6,3019.1,0.00496426]
[1766454771492,3.313,3019.6,3018.9,3.313]
[1766454771493,4.75946313,3019.6,3018.9,3.313]
[1766454771794,4.75946313,3019.6,3018.7,0.00393379]
[1766454772192,1.44646313,3019.4,3018.6,3.313]
[1766454772400,3.313,3019.3,3018.6,1.7332]
[1766454772610,1.44646313,3018.8,3017.1,33.13]
[1766454772906,3.313,3018.7,3017.5,1.44646313]
[1766454773199,3.313,3018.7,3017.6,44.113]
[1766454774898,3.313,3018.7,3017.5,0.00355518]
[1766454774899,2.17499134,3018.5,3017.5,0.00355518]
[1766454775201,3.313,3018.4,3016.9,3.313]
[1766454775498,0.00496426,3018.0,3016.9,3.313]
[1766454775800,3.313,3017.9,3016.9,3.313]
[1766454776200,3.313,3017.9,3016.9,3.31533619]
[1766454778096,0.00496426,3018.0,3017.0,5.886]
[1766454778694,0.632,3018.5,3017.0,5.886]
[1766454778894,3.313,3018.4,3017.0,5.886]
[1766454779803,0.00496426,3018.0,3017.0,5.886]
[1766454780005,3.313,3017.9,3017.0,5.886]
[1766454780799,7.038,3017.9,3016.9,3.31533619]
[1766454781404,8.09289879,3017.9,3016.2,3.314]
[1766454781598,5.754,3017.8,3016.2,3.314]
[1766454781903,9.068,3017.8,3016.3,40.8]
[1766454782306,9.07051453,3017.8,3016.3,0.00349808]
[1766454783198,2.17499134,3017.5,3014.6,0.16595]
[1766454783398,1.905,3017.6,3016.1,4.57419552]
[1766454783605,3.314,3017.5,3016.2,2.17499134]
[1766454783805,0.00251453,3017.8,3016.3,46.69]
[1766454784006,0.00251453,3017.8,3016.6,2.17499134]
[1766454784201,1.453e-05,3017.8,3016.7,11.6]
[1766454784502,1.453e-05,3017.8,3016.3,40.8]
[1766454784710,1.453e-05,3017.8,3016.4,17.491]
[1766454785102,1.453e-05,3017.8,3016.4,17.49353193]
[1766454785800,3.314,3017.7,3016.5,3.314]
[1766454786900,1.453e-05,3017.8,3016.5,3.314]
[1766454787204,3.314,3017.7,3016.5,3.314]
[1766454788912,1.453e-05,3017.8,3016.5,3.314]
[1766454789099,3.314,3017.6,3016.5,3.314]
[1766454789299,1.453e-05,3017.8,3016.5,3.314]
[1766454789500,3.314,3017.7,3016.5,3.314]
[1766454790903,1.453e-05,3017.8,3016.5,3.314]
[1766454791301,1.453e-05,3017.8,3016.4,0.00253193]
[1766454791501,1.453e-05,3017.8,3016.5,17.492]
[1766454792104,1.453e-05,3017.8,3016.6,17.493]
[1766454792612,1.453e-05,3017.8,3016.7,17.493]
[1766454794717,0.937,3018.5,3016.8,3.62168441]
[1766454794718,4.251,3018.5,3016.8,3.62168441]
[1766454794916,3.314,3018.5,3016.8,3.62168441]
[1766454795124,3.314,3018.5,3016.9,14.179]
[1766454795313,3.314,3018.5,3016.9,17.493]
[1766454795714,0.00496426,3018.0,3017.4,0.00496426]
[1766454795915,0.00496426,3018.0,3017.5,9.207]
[1766454796315,3.31707649,3018.5,3017.5,9.207]
[1766454796514,0.00307649,3018.5,3017.5,9.207]
[1766454796916,0.00307649,3018.5,3017.4,0.00496426]
[1766454797117,0.00307649,3018.5,3017.5,9.207]
[1766454797419,0.00496426,3018.3,3017.4,0.00496426]
[1766454797621,0.00496426,3018.3,3017.5,3.71]
[1766454797813,0.00496426,3018.3,3017.4,0.00496426]
[1766454798016,0.00496426,3018.3,3017.6,5.893]
[1766454798217,0.00496426,3018.3,3017.4,0.00496426]
[1766454798420,0.00496426,3018.3,3017.5,9.207]
[1766454798823,3.31896426,3018.3,3017.4,0.00496426]
[1766454799013,3.31896426,3018.3,3017.5,3.314]
[1766454800020,0.00496426,3018.3,3017.5,3.314]
[1766454804217,0.00496426,3018.3,3017.6,3.314]
[1766454809431,3.31896426,3018.3,3017.6,3.314]
[1766454814327,3.31896426,3018.3,3017.4,5.89696426]
[1766454814328,3.31896426,3018.3,3017.4,0.00496426]
[1766454814528,3.31896426,3018.3,3017.5,3.314]
[1766454818135,3.31896426,3018.3,3017.4,0.00496426]
[1766454818429,3.31896426,3018.3,3017.4,3.31896426]
[1766454821836,3.31896426,3018.3,3017.4,0.00496426]
[1766454822131,3.31896426,3018.3,3017.4,3.31896426]
[1766454822433,3.31896426,3018.3,3017.4,0.00496426]
[1766454822636,7.03596426,3018.3,3017.0,3.314]
[1766454823634,7.03596426,3018.3,3017.3,0.00496426]
[1766454825139,7.03596426,3018.3,3017.0,3.314]
[1766454826023,3.314,3018.2,3017.0,3.314]
[1766454827037,3.314,3018.1,3017.0,3.314]
[1766454828931,0.00496426,3018.3,3017.0,3.314]
[1766454829128,3.314,3018.2,3017.0,3.314]
[1766454830833,0.00496426,3018.3,3017.0,3.314]
[1766454831532,3.31707649,3018.5,3017.3,0.00496426]
[1766454831735,3.31707649,3018.5,3017.4,15.89]
[1766454832534,0.00496426,3018.3,3017.4,15.89]
[1766454846144,0.00496426,3018.3,3017.3,0.00496426]
[1766454846347,0.00496426,3018.3,3017.4,3.683]
[1766454849336,3.314,3018.2,3017.3,0.00496426]
[1766454849549,3.314,3018.2,3017.4,3.314]
[1766454850448,1.45036602,3018.0,3017.3,0.00496426]
[1766454850749,3.314,3017.9,3017.3,0.00496426]
[1766454857452,3.314,3017.8,3017.3,0.00496426]
[1766454858149,3.314,3017.9,3017.3,1.45533028]
[1766454858348,3.314,3018.0,3017.3,1.45533028]
[1766454858552,3.314,3018.0,3017.4,3.314]
[1766454860747,3.314,3018.0,3017.3,0.00496426]
[1766454860748,4.76436602,3018.0,3017.3,0.00496426]
[1766454860954,1.45036602,3017.8,3017.3,0.00496426]
[1766454863050,0.00496426,3018.3,3017.3,0.00496426]
[1766454863250,3.314,3018.2,3017.3,0.00496426]
[1766454867753,0.00496426,3018.3,3017.3,0.00496426]
[1766454868059,3.315,3018.2,3017.3,1.45533028]
[1766454870760,3.315,3018.2,3017.5,1.45036602]
[1766454870963,0.00496426,3018.3,3017.6,3.314]
[1766454877669,0.00496426,3018.3,3017.7,1.45036602]
[1766454877966,3.31707649,3018.5,3017.7,1.45036602]
[1766454878655,3.31707649,3018.5,3017.6,3.314]
[1766454878856,0.00496426,3018.4,3017.6,3.314]
[1766454886074,0.00496426,3018.4,3017.3,1.45533028]
[1766454886371,3.31896426,3018.4,3017.5,4.76436602]
[1766454887857,3.31896426,3018.4,3017.5,3.314]
[1766454890067,3.31896426,3018.4,3017.5,4.76436602]
[1766454892675,3.31896426,3018.4,3017.7,1.45036602]
[1766454892969,3.31896426,3018.4,3017.8,3.314]
[1766454900272,0.00307649,3018.5,3017.8,4.76436602]
[1766454900475,0.00307649,3018.5,3018.0,1.45036602]
[1766454900676,2.64578817,3019.4,3018.2,1.45036602]
[1766454900867,5.187,3019.2,3018.1,3.314]
[1766454901174,5.187,3019.2,3018.2,1.45036602]
[1766454901376,1.45036602,3018.6,3016.8,6.355]
[1766454901571,1.45036602,3018.0,3016.2,0.16586]
[1766454901877,1.45036602,3018.0,3017.4,3.314]
[1766454902476,4.76436602,3018.2,3017.4,3.314]
[1766454902865,3.314,3018.2,3017.4,3.314]
[1766454903172,3.314,3018.2,3017.4,4.76436602]
[1766454903373,3.314,3018.3,3017.6,1.45036602]
[1766454903564,3.314,3018.5,3017.7,3.314]
[1766454907681,3.314,3018.5,3017.8,1.45036602]
[1766454907871,3.314,3018.8,3018.0,1.45036602]
[1766454908074,3.314,3018.8,3018.2,1.45036602]
[1766454908273,3.314,3018.8,3018.3,3.314]
[1766454908881,3.31752697,3018.8,3018.3,3.314]
[1766454909676,0.00352697,3018.8,3018.3,3.314]
[1766454911882,0.00352697,3018.8,3017.1,1.44235704]
[1766454912182,3.314,3018.7,3017.4,12.99]
[1766454914582,3.314,3018.7,3017.5,1.45006043]
[1766454922088,3.314,3018.7,3017.6,9.197]
[1766454922287,3.314,3018.7,3017.7,3.314]
[1766454922485,3.314,3018.7,3017.5,1.45006043]
[1766454922688,3.314,3018.7,3017.6,9.197]
[1766454942011,3.314,3018.7,3017.3,1.45502469]
[1766454942206,3.314,3018.7,3017.6,5.881]
[1766454942403,3.314,3018.7,3017.7,3.314]
[1766454944207,3.314,3018.7,3017.6,5.881]
[1766454944404,3.314,3018.7,3017.7,3.314]
[1766454944603,0.00352697,3018.8,3017.7,3.314]
[1766454944814,1.19,3019.8,3018.5,1.45006043]
[1766454945118,3.314,3019.7,3018.5,3.314]
[1766454945309,1.45006043,3019.4,3017.6,1.46467393]
[1766454945612,1.45006043,3019.1,3017.6,1.46467393]
[1766454945803,3.314,3019.0,3017.7,9.195]
[1766454946113,0.00496426,3018.7,3018.0,0.00496426]
[1766454946408,0.00496426,3018.7,3018.0,3.31896426]
[1766454947410,3.31896426,3018.7,3018.0,3.31896426]
[1766454952825,3.31896426,3018.7,3018.0,0.00496426]
[1766454955320,3.31896426,3018.7,3017.6,1.46467393]
[1766454955821,1.45006043,3018.4,3017.6,1.46467393]
[1766454956131,3.314,3018.3,3017.4,3.314]
[1766454956321,3.314,3018.2,3017.5,0.00496426]
[1766454957526,3.314,3018.2,3017.2,3.314]
[1766454958427,3.314,3018.2,3017.4,0.00496426]
[1766454971936,4.7646617,3018.2,3017.4,0.00496426]
[1766454973136,3.314,3018.2,3017.4,0.00496426]
[1766454984148,1.4506617,3018.4,3017.4,0.00496426]
[1766454984340,9.069,3018.3,3017.4,0.00496426]
[1766454985646,10.5196617,3018.3,3017.4,0.00496426]
[1766454988947,10.5196617,3018.3,3016.9,1.4506617]
[1766454989245,1.4506617,3018.2,3017.0,3.315]
[1766454989842,1.4506617,3018.2,3017.3,0.00496426]
[1766454993551,9.069,3018.3,3017.3,0.00496426]
[1766455001263,1.62135596,3018.7,3017.3,4.76962596]
[1766455001560,3.769,3018.6,3017.5,1.4506617]
[1766455001754,3.769,3018.6,3017.6,3.314]
[1766455004772,3.769,3018.6,3017.7,1.4506617]
[1766455004959,3.769,3018.6,3017.9,1.4506617]
[1766455005263,3.769,3018.6,3017.9,4.7646617]
[1766455019873,0.00496426,3018.7,3018.1,1.4506617]
[1766455020872,0.00496426,3018.7,3018.2,3.314]
[1766455035375,3.314,3018.9,3018.2,3.314]
[1766455036482,3.31896426,3018.9,3018.2,3.314]
[1766455047996,2.48996426,3018.9,3018.2,3.314]
[1766455048189,0.83156426,3018.9,3018.2,3.314]
[1766455058401,3.314,3019.2,3018.2,3.314]
[1766455059404,1.64889976,3019.2,3018.2,3.314]
[1766455060503,0.00496426,3019.0,3018.2,3.314]
[1766455060997,0.00349976,3019.2,3018.4,1.44960381]
[1766455061303,0.00349976,3019.2,3018.5,3.314]
[1766455062011,0.00846402,3019.2,3018.5,3.314]
[1766455062709,0.00846402,3019.2,3018.6,5.872]
[1766455062909,0.00846402,3019.2,3018.6,9.18821478]
[1766455069411,0.00846402,3019.2,3018.6,0.00321478]
[1766455069616,3.32146402,3019.2,3018.2,3.313]
[1766455070518,3.32146402,3019.2,3018.2,3.31571905]
[1766455074822,3.32146402,3019.2,3018.2,0.00271905]
[1766455075024,3.32146402,3019.2,3018.2,3.31571905]
[1766455076725,3.32146402,3019.2,3018.2,0.00271905]
[1766455076922,3.32146402,3019.2,3018.2,3.31571905]
[1766455083624,3.32146402,3019.2,3018.2,4.76532286]
[1766455086229,8.84238342,3019.5,3018.2,4.76532286]
[1766455087327,0.00330948,3019.2,3018.2,4.76532286]
[1766455088327,3.31632542,3019.5,3018.5,1.44960381]
[1766455088532,0.00332542,3019.5,3018.6,9.183]
[1766455091025,0.00332542,3019.5,3018.7,9.184]
[1766455102838,0.00332542,3019.5,3018.7,10.63311775]
[1766455103745,1.13332494,3019.8,3019.1,1.44911775]
[1766455103951,4.44632494,3019.8,3019.3,1.44911775]
[1766455104443,4.44632494,3019.8,3019.2,3.313]
[1766455104638,1.61475775,3020.4,3019.5,0.0008]
[1766455104834,3.313,3020.3,3019.2,3.313]
[1766455105746,3.31639915,3020.3,3019.2,3.313]
[1766455105944,1.44911775,3020.2,3019.2,3.313]
[1766455110647,3.31639915,3020.3,3019.2,3.313]
[1766455110847,4.7655169,3020.3,3019.2,3.313]
[1766455120151,4.7655169,3020.3,3017.8,5.47770194]
[1766455120152,1.44911775,3019.5,3017.8,5.47770194]
[1766455120349,1.44911775,3018.9,3018.2,3.31571905]
[1766455120546,3.313,3019.0,3018.2,3.31571905]
[1766455121348,0.00496426,3018.9,3018.3,0.00496426]
[1766455127650,0.00496426,3018.9,3018.3,3.31796426]
[1766455143555,1.45408201,3018.9,3018.3,0.00496426]
[1766455143761,1.44911775,3018.7,3018.3,0.00496426]
[1766455144056,4.76211775,3018.7,3018.3,0.00496426]
[1766455144761,3.31796426,3018.9,3018.3,0.00496426]
[1766455151069,3.31796426,3018.9,3018.3,3.31896426]
[1766455152871,3.314,3019.1,3018.3,3.31896426]
[1766455154875,3.314,3019.1,3018.3,3.31896426]
[1766455158069,1.44962053,3018.6,3017.1,0.09177385]
[1766455158276,4.76362053,3018.6,3017.2,9.181]
[1766455158473,4.76362053,3018.6,3017.2,10.48799796]
[1766455158875,4.76362053,3018.6,3017.2,1.30699796]
[1766455159077,4.76362053,3018.6,3017.3,17.466]
[1766455159375,0.00496426,3018.3,3017.6,0.00496426]
[1766455159575,0.00496426,3018.3,3017.7,3.314]
[1766455162079,3.314,3018.6,3017.7,3.314]
[1766455164982,2.68501615,3019.2,3017.7,3.314]
[1766455165190,3.314,3019.1,3017.7,3.314]
[1766455172692,3.314,3019.1,3017.7,4.56538832]
[1766455174594,3.314,3019.1,3017.7,3.314]
[1766455175987,1.23539562,3019.2,3017.7,4.76362053]
[1766455176295,3.314,3019.1,3017.7,4.76362053]
[1766455185500,3.314,3019.1,3017.8,8.285]
[1766455185703,3.314,3019.1,3017.9,5.865]
[1766455185900,3.314,3019.1,3018.0,3.314]
[1766455188204,3.314,3019.1,3018.1,3.314]
[1766455188702,3.314,3019.1,3018.1,4.76362053]
[1766455189196,3.314,3019.1,3018.1,44.114]
[1766455189604,3.314,3019.1,3018.1,3.314]
[1766455191503,3.314,3019.1,3017.8,1.44962053]
[1766455191703,3.314,3019.1,3018.2,5.872]
[1766455192004,1.44962053,3018.9,3017.6,0.00496426]
[1766455192199,1.44962053,3018.9,3017.9,5.872]
[1766455192400,1.44962053,3018.9,3018.0,3.314]
[1766455192696,3.314,3018.8,3018.0,3.314]
[1766455200905,3.314,3018.8,3017.6,0.00496426]
[1766455201209,3.314,3018.8,3017.7,9.185]
[1766455203414,0.1657,3019.3,3017.7,9.185]
[1766455203613,3.314,3019.2,3017.7,9.185]
[1766455204824,3.314,3019.2,3017.8,1.44962053]
[1766455205316,3.314,3019.2,3017.7,9.185]
[1766455205824,4.76362053,3019.2,3017.6,0.00496426]
[1766455206016,4.76362053,3019.2,3017.7,17.47]
[1766455206516,1.44962053,3018.6,3017.6,0.00496426]
[1766455206722,3.314,3018.5,3017.7,3.314]
[1766455215320,3.47972,3018.8,3017.7,4.76421452]
[1766455215519,1.45021452,3018.6,3017.6,0.00496426]
[1766455215921,1.45021452,3018.2,3017.7,3.314]
[1766455216828,1.45021452,3018.4,3017.7,3.314]
[1766455217830,1.45021452,3018.4,3017.6,0.00496426]
[1766455218230,1.45021452,3018.2,3017.7,3.314]
[1766455218431,1.45021452,3018.2,3017.6,0.00496426]
[1766455218629,1.45021452,3017.8,3017.3,0.0042515]
[1766455218930,1.45364031,3017.8,3017.3,0.0042515]
[1766455220425,0.00342579,3017.8,3017.3,0.0042515]
[1766455225235,2.579e-05,3017.8,3017.3,1.45446602]
[1766455225437,3.31896,3018.2,3017.3,1.45446602]
[1766455226543,3.32229235,3018.2,3017.3,0.0042515]
[1766455227131,1.45021452,3018.1,3017.3,0.0042515]
[1766455227332,1.45021452,3017.9,3017.3,0.0042515]
[1766455227631,1.45021452,3017.9,3017.4,3.314]
[1766455228036,1.45021452,3018.0,3017.3,0.0042515]
[1766455228237,1.45021452,3018.0,3017.3,3.3182515]
[1766455229940,4.77250687,3018.2,3017.3,3.3182515]
[1766455233941,4.77250687,3018.2,3017.4,3.314]
[1766455237444,1.45021452,3018.0,3017.4,3.314]
[1766455240853,1.45021452,3018.0,3017.4,3.315]
[1766455241143,1.45021452,3018.0,3017.3,0.0042515]
[1766455241346,1.45021452,3017.6,3017.3,0.0042515]
[1766455241739,1.45021452,3017.7,3017.3,0.0042515]
[1766455243243,1.45021452,3017.7,3017.2,0.00496426]
[1766455243447,9.068,3017.6,3015.9,3.315]
[1766455243746,1.45021452,3016.9,3015.9,3.315]
[1766455244348,1.45021452,3016.9,3016.1,0.00497282]
[1766455244549,1.45021452,3016.9,3016.2,3.315]
[1766455245147,1.45021452,3016.9,3016.1,0.00497282]
[1766455245342,1.45021452,3016.9,3016.1,3.31997282]
[1766455247248,3.315,3017.0,3016.1,3.31997282]
[1766455247446,4.76521452,3017.0,3016.1,3.31997282]
[1766455248442,4.76521452,3017.0,3015.9,0.00293617]
[1766455248443,1.45021452,3016.6,3015.9,0.00293617]
[1766455248655,1.45021452,3016.0,3015.3,3.315]
[1766455248949,4.76521452,3016.2,3015.3,3.315]
[1766455249550,0.00497282,3016.1,3015.4,0.00497282]
[1766455250140,0.16589,3015.8,3014.1,0.27094895]
[1766455250342,1.07826655,3015.9,3014.1,3.315]
[1766455250550,3.315,3015.8,3014.8,1.45021452]
[1766455250853,3.315,3015.8,3014.1,4.76521452]
[1766455250854,3.315,3015.8,3015.0,1.45021452]
[1766455251051,0.00497282,3016.1,3014.9,1.45021452]
[1766455251052,3.315,3015.7,3014.9,1.45021452]
[1766455251349,3.315,3015.7,3015.0,0.00497282]
[1766455253455,1.45518734,3016.1,3015.0,3.32097282]
[1766455253757,3.316,3016.0,3015.0,3.32097282]
[1766455254154,1.45021452,3015.9,3015.0,3.32097282]
[1766455254647,1.45021452,3015.9,3014.7,1.45021452]
[1766455254648,1.45021452,3015.1,3013.7,1.45021452]
[1766455254842,1.45021452,3014.9,3014.1,3.316]
[1766455255045,4.76621452,3014.9,3014.1,3.316]
[1766455255753,4.76621452,3014.9,3014.2,0.00497282]
[1766455256349,1.08055169,3015.7,3014.2,0.00497282]
[1766455256560,1.45021452,3015.0,3014.2,0.00497282]
[1766455256752,3.316,3014.9,3014.2,0.00497282]
[1766455257547,1.45021452,3014.8,3014.2,0.00497282]
[1766455257752,1.45021452,3014.6,3014.2,0.00497282]
[1766455257955,1.45021452,3014.4,3013.3,3.316]
[1766455258255,1.45021452,3014.2,3013.3,3.316]
[1766455259055,0.00497282,3014.1,3013.4,0.00330377]
[1766455259254,0.00497282,3014.1,3012.5,1.45021452]
[1766455259452,3.317,3014.0,3012.9,1.45021452]
[1766455259652,8.857,3014.0,3013.0,3.317]
[1766455260147,5.76097282,3014.1,3013.1,1.45021452]
[1766455260454,0.00422378,3014.0,3013.0,3.31938085]
[1766455260758,0.00422378,3014.0,3013.1,1.45021452]
[1766455261056,2.378e-05,3014.0,3013.3,1.45021452]
[1766455261258,2.378e-05,3014.0,3013.4,3.317]
[1766455261951,2.378e-05,3014.0,3013.0,0.00238085]
[1766455266762,2.378e-05,3014.0,3013.1,5.883]
[1766455266962,2.378e-05,3014.0,3013.2,3.318]
[1766455268063,3.318,3014.3,3013.2,3.318]
[1766455268264,1.14367279,3014.7,3013.3,8.296]